{"text_format":"3","workbook":"xlsx","n_sheets":1,"sheets":["Darlehensrechner"],"not_rendered":{"defined_names":9},"read":"whole","date_system":"1900"}

{"sheet":"Darlehensrechner","index":0,"n_rows":22,"n_cols":13,"rows_kept":22,"merged":[[1,1,1,3],[1,6,2,8],[1,11,2,12],[2,1,2,3],[6,5,6,6],[7,5,7,6],[10,2,10,5],[10,6,10,8],[10,9,10,12],[18,2,18,12]]}
[]
[null,"RECHNER FÜR ",{"$nulls":4},{"v":50000,"d":"50,000.00 €"},{"$nulls":4},"2011-05-10"]
[null,"STUDIENDARLEHEN "]
[]
[null," Erfahrungsgemäß sollte der Gesamtbetrag der monatlichen Rückzahlungen für Studiendarlehen 8 % des ersten Jahresgehalts nicht übersteigen."]
[]
[null,null,"Ihre aktuelle monatliche Rückzahlung (kombiniert) beträgt:",null,null,{"$f":"Studiendarlehen[[#Totals],[Aktuelle monatliche Rückzahlung]]","v":{"v":328.58590726058833,"d":"328.59 €"}},null,null,"Ihre geplante monatliche Rückzahlung (kombiniert) beträgt:",{"$nulls":3},{"$f":"Studiendarlehen[[#Totals],[Geplante Zahlung]]","v":{"v":328.58590726058833,"d":"328.59 €"}}]
[null,null,"Prozentsatz des Monatseinkommens:",null,null,{"$f":"Studiendarlehen[[#Totals],[Aktuelle monatliche Rückzahlung]]/GeschätztesMonatsgehalt","v":{"v":0.07886061774254119,"d":"7.89%"}},null,null,"  Prozentsatz des Monatseinkommens:",{"$nulls":3},{"$f":"Studiendarlehen[[#Totals],[Geplante Zahlung]]/GeschätztesMonatsgehalt","v":{"v":0.07886061774254119,"d":"7.89%"}}]
[]
[]
[null,null,"ALLGEMEINE DETAILS ZUM DAHRLEHEN",{"$nulls":3},"DATEN ZUR RÜCKZAHLUNG",null,null,"ZAHLUNGSDETAILS"]
[null,null,"Darlehen Nr.","Darlehensgeber","Darlehensbetrag","Jährliche Verzinsung","Anfangsdatum","Laufzeit (Jahre)","Enddatum","Aktuelle monatliche Rückzahlung","Zinsen gesamt","Geplante Zahlung","Jährliche Zahlung"]
[null,null,"10998M88","Darlehensgeber 1",{"v":10000,"d":"10,000.00 €"},{"v":0.05,"d":"5.00%"},"2011-04-01",10,{"$f":"IF(AND(Studiendarlehen[[#This Row],[Anfangsdatum]]>0,Studiendarlehen[[#This Row],[Laufzeit (Jahre)]]>0),EDATE(Studiendarlehen[[#This Row],[Anfangsdatum]],Studiendarlehen[[#This Row],[Laufzeit (Jahre)]]*12),\"\")","v":"2021-04-01"},{"$f":"IF(AND(DarlehenAnfangDHeute,COUNT(Studiendarlehen[[#This Row],[Darlehensbetrag]:[Laufzeit (Jahre)]])=4,Studiendarlehen[[#This Row],[Anfangsdatum]]<TODAY()),PMT(Studiendarlehen[[#This Row],[Jährliche Verzinsung]]/12,Studiendarlehen[[#This Row],[Laufzeit (Jahre)]]*12,-Studiendarlehen[[#This Row],[Darlehensbetrag]],0,0),\"\")","v":{"v":106.06551523907524,"d":"106.07 €"}},{"$f":"IFERROR((Studiendarlehen[[#This Row],[Geplante Zahlung]]*(Studiendarlehen[[#This Row],[Laufzeit (Jahre)]]*12))-Studiendarlehen[[#This Row],[Darlehensbetrag]],\"\")","v":{"v":2727.8618286890287,"d":"2,727.86 €"}},{"$f":"IF(COUNTA(Studiendarlehen[[#This Row],[Darlehensbetrag]:[Laufzeit (Jahre)]])<>4,\"\",PMT(Studiendarlehen[[#This Row],[Jährliche Verzinsung]]/12,Studiendarlehen[[#This Row],[Laufzeit (Jahre)]]*12,-Studiendarlehen[[#This Row],[Darlehensbetrag]],0,0))","v":{"v":106.06551523907524,"d":"106.07 €"}},{"$f":"IFERROR(Studiendarlehen[[#This Row],[Geplante Zahlung]]*12,\"\")","v":{"v":1272.7861828689029,"d":"1,272.79 €"}}]
[null,null,"20987N87","Darlehensgeber 2",{"v":8000,"d":"8,000.00 €"},{"v":0.05,"d":"5.00%"},"2011-05-01",10,{"$f":"IF(AND(Studiendarlehen[[#This Row],[Anfangsdatum]]>0,Studiendarlehen[[#This Row],[Laufzeit (Jahre)]]>0),EDATE(Studiendarlehen[[#This Row],[Anfangsdatum]],Studiendarlehen[[#This Row],[Laufzeit (Jahre)]]*12),\"\")","v":"2021-05-01"},{"$f":"IF(AND(DarlehenAnfangDHeute,COUNT(Studiendarlehen[[#This Row],[Darlehensbetrag]:[Laufzeit (Jahre)]])=4,Studiendarlehen[[#This Row],[Anfangsdatum]]<TODAY()),PMT(Studiendarlehen[[#This Row],[Jährliche Verzinsung]]/12,Studiendarlehen[[#This Row],[Laufzeit (Jahre)]]*12,-Studiendarlehen[[#This Row],[Darlehensbetrag]],0,0),\"\")","v":{"v":84.85241219126019,"d":"84.85 €"}},{"$f":"IFERROR((Studiendarlehen[[#This Row],[Geplante Zahlung]]*(Studiendarlehen[[#This Row],[Laufzeit (Jahre)]]*12))-Studiendarlehen[[#This Row],[Darlehensbetrag]],\"\")","v":{"v":2182.289462951223,"d":"2,182.29 €"}},{"$f":"IF(COUNTA(Studiendarlehen[[#This Row],[Darlehensbetrag]:[Laufzeit (Jahre)]])<>4,\"\",PMT(Studiendarlehen[[#This Row],[Jährliche Verzinsung]]/12,Studiendarlehen[[#This Row],[Laufzeit (Jahre)]]*12,-Studiendarlehen[[#This Row],[Darlehensbetrag]],0,0))","v":{"v":84.85241219126019,"d":"84.85 €"}},{"$f":"IFERROR(Studiendarlehen[[#This Row],[Geplante Zahlung]]*12,\"\")","v":{"v":1018.2289462951222,"d":"1,018.23 €"}}]
[null,null,"36785LM","Darlehensgeber 3",{"v":6000,"d":"6,000.00 €"},{"v":0.045,"d":"4.50%"},"2012-03-01",10,{"$f":"IF(AND(Studiendarlehen[[#This Row],[Anfangsdatum]]>0,Studiendarlehen[[#This Row],[Laufzeit (Jahre)]]>0),EDATE(Studiendarlehen[[#This Row],[Anfangsdatum]],Studiendarlehen[[#This Row],[Laufzeit (Jahre)]]*12),\"\")","v":"2022-03-01"},{"$f":"IF(AND(DarlehenAnfangDHeute,COUNT(Studiendarlehen[[#This Row],[Darlehensbetrag]:[Laufzeit (Jahre)]])=4,Studiendarlehen[[#This Row],[Anfangsdatum]]<TODAY()),PMT(Studiendarlehen[[#This Row],[Jährliche Verzinsung]]/12,Studiendarlehen[[#This Row],[Laufzeit (Jahre)]]*12,-Studiendarlehen[[#This Row],[Darlehensbetrag]],0,0),\"\")","v":{"v":62.18304525420918,"d":"62.18 €"}},{"$f":"IFERROR((Studiendarlehen[[#This Row],[Geplante Zahlung]]*(Studiendarlehen[[#This Row],[Laufzeit (Jahre)]]*12))-Studiendarlehen[[#This Row],[Darlehensbetrag]],\"\")","v":{"v":1461.9654305051017,"d":"1,461.97 €"}},{"$f":"IF(COUNTA(Studiendarlehen[[#This Row],[Darlehensbetrag]:[Laufzeit (Jahre)]])<>4,\"\",PMT(Studiendarlehen[[#This Row],[Jährliche Verzinsung]]/12,Studiendarlehen[[#This Row],[Laufzeit (Jahre)]]*12,-Studiendarlehen[[#This Row],[Darlehensbetrag]],0,0))","v":{"v":62.18304525420918,"d":"62.18 €"}},{"$f":"IFERROR(Studiendarlehen[[#This Row],[Geplante Zahlung]]*12,\"\")","v":{"v":746.1965430505102,"d":"746.20 €"}}]
[null,null,"765R43","Darlehensgeber 4",{"v":4000,"d":"4,000.00 €"},{"v":0.05,"d":"5.00%"},"2012-05-01",5,{"$f":"IF(AND(Studiendarlehen[[#This Row],[Anfangsdatum]]>0,Studiendarlehen[[#This Row],[Laufzeit (Jahre)]]>0),EDATE(Studiendarlehen[[#This Row],[Anfangsdatum]],Studiendarlehen[[#This Row],[Laufzeit (Jahre)]]*12),\"\")","v":"2017-05-01"},{"$f":"IF(AND(DarlehenAnfangDHeute,COUNT(Studiendarlehen[[#This Row],[Darlehensbetrag]:[Laufzeit (Jahre)]])=4,Studiendarlehen[[#This Row],[Anfangsdatum]]<TODAY()),PMT(Studiendarlehen[[#This Row],[Jährliche Verzinsung]]/12,Studiendarlehen[[#This Row],[Laufzeit (Jahre)]]*12,-Studiendarlehen[[#This Row],[Darlehensbetrag]],0,0),\"\")","v":{"v":75.48493457604374,"d":"75.48 €"}},{"$f":"IFERROR((Studiendarlehen[[#This Row],[Geplante Zahlung]]*(Studiendarlehen[[#This Row],[Laufzeit (Jahre)]]*12))-Studiendarlehen[[#This Row],[Darlehensbetrag]],\"\")","v":{"v":529.0960745626244,"d":"529.10 €"}},{"$f":"IF(COUNTA(Studiendarlehen[[#This Row],[Darlehensbetrag]:[Laufzeit (Jahre)]])<>4,\"\",PMT(Studiendarlehen[[#This Row],[Jährliche Verzinsung]]/12,Studiendarlehen[[#This Row],[Laufzeit (Jahre)]]*12,-Studiendarlehen[[#This Row],[Darlehensbetrag]],0,0))","v":{"v":75.48493457604374,"d":"75.48 €"}},{"$f":"IFERROR(Studiendarlehen[[#This Row],[Geplante Zahlung]]*12,\"\")","v":{"v":905.8192149125249,"d":"905.82 €"}}]
[null,null,"Summen",null,{"$f":"SUBTOTAL(109,Studiendarlehen[Darlehensbetrag])","v":{"v":28000,"d":"28,000.00 €"}},{"$nulls":4},{"$f":"SUBTOTAL(109,Studiendarlehen[Aktuelle monatliche Rückzahlung])","v":{"v":328.58590726058833,"d":"328.59 €"}},{"$f":"SUBTOTAL(109,Studiendarlehen[Zinsen gesamt])","v":{"v":6901.212796707978,"d":"6,901.21 €"}},{"$f":"SUBTOTAL(109,Studiendarlehen[Geplante Zahlung])","v":{"v":328.58590726058833,"d":"328.59 €"}},{"$f":"SUBTOTAL(109,Studiendarlehen[Jährliche Zahlung])","v":{"v":3943.03088712706,"d":"3,943.03 €"}}]
[null,null,"Mittelwerte",null,{"$f":"AVERAGE(Studiendarlehen[Darlehensbetrag])","v":{"v":7000,"d":"7,000.00 €"}},{"$f":"AVERAGE(Studiendarlehen[Jährliche Verzinsung])","v":{"v":0.04875,"d":"4.88%"}},{"$nulls":4},{"$f":"AVERAGE(Studiendarlehen[Zinsen gesamt])","v":{"v":1725.3031991769944,"d":"1,725.30 €"}},null,{"$f":"AVERAGE(Studiendarlehen[Jährliche Zahlung])","v":{"v":985.757721781765,"d":"985.76 €"}}]
[]
[{"$nulls":10},"Gesamter Rückzahlungsbetrag konsolidiert:",null,{"$f":"Studiendarlehen[[#Totals],[Darlehensbetrag]]+Studiendarlehen[[#Totals],[Zinsen gesamt]]","v":{"v":34901.21279670798,"d":"34,901.21 €"}}]
[]
[{"$nulls":10},"Geschätztes Monatseinkommen nach Studienabschluss:",null,{"$f":"(GeschätztesJahresgehalt/12)","v":{"v":4166.666666666667,"d":"4,166.67 €"}}]